bitfinex-derivatives/quotes_BTCF0:USTF0_20250327
["timestamp","ask_amount","ask_price","bid_price","bid_amount"]
[1743082407468,0.10638153,86121.0,86120.0,0.11721397]
[1743082407668,0.002,86125.0,86124.0,0.1161441]
[1743082407865,0.002,86125.0,86124.0,0.3614]
[1743082408066,0.0001741,86129.0,86126.0,0.0580701]
[1743082408261,0.01286622,86128.0,86127.0,0.1161401]
[1743082408463,0.01286622,86128.0,86127.0,0.1167401]
[1743082408858,0.12900816,86128.0,86127.0,0.0006]
[1743082409064,0.01078946,86128.0,86127.0,0.1167401]
[1743082409374,0.01078946,86128.0,86068.0,0.3608]
[1743082409375,0.3608,86124.0,86068.0,0.3608]
[1743082409561,0.3608,86124.0,86068.0,0.00064]
[1743082409562,0.4770183,86069.0,86068.0,0.00064]
[1743082409764,0.00128,86069.0,86049.0,0.228]
[1743082410063,0.3608,86057.0,86049.0,0.00136]
[1743082410369,0.3608,86057.0,86047.0,0.058204]
[1743082410370,0.36208,86057.0,86050.0,0.228]
[1743082410569,0.3608,86056.0,86055.0,0.1162372]
[1743082410771,0.3658,86069.0,86068.0,0.1162197]
[1743082410964,0.00128,86069.0,86068.0,0.1168597]
[1743082411163,0.3608,86074.0,86068.0,0.1168597]
[1743082411164,0.3608,86074.0,86073.0,0.1162129]
[1743082411361,0.3608,86093.0,86073.0,0.3614]
[1743082411670,0.4770116,86074.0,86073.0,0.00068]
[1743082411861,0.36140001,86074.0,86052.0,0.3608]
[1743082412061,0.36140001,86074.0,86073.0,0.1162129]
[1743082412261,0.3608,86086.0,86085.0,0.1161967]
[1743082412462,0.3608,86086.0,86085.0,0.1169167]
[1743082412463,0.36152,86086.0,86085.0,0.1169167]
[1743082413369,0.36097431,86094.0,86093.0,0.1161859]
[1743082413672,0.36189431,86094.0,86093.0,0.1171059]
[1743082413867,0.36189431,86094.0,86093.0,0.00092]
[1743082414068,0.36189431,86094.0,86085.0,0.001]
[1743082414069,0.1161954,86086.0,86085.0,0.001]
[1743082414260,0.4776354,86086.0,86085.0,0.001]
[1743082415059,0.5776354,86086.0,86085.0,0.001]
[1743082415671,0.46144,86086.0,86085.0,0.1171967]
[1743082415868,0.36097431,86094.0,86093.0,0.1161859]
[1743082416177,0.47783891,86094.0,86093.0,0.0012]
[1743082416360,0.36165431,86094.0,86085.0,0.002]
[1743082416560,0.4769954,86086.0,86085.0,0.002]
[1743082416771,0.36140001,86086.0,86085.0,0.1181967]
[1743082416983,0.36140001,86086.0,86085.0,0.1173567]
[1743082417274,0.36097431,86094.0,86093.0,0.1161859]
[1743082417475,0.36157432,86094.0,86093.0,0.1161859]
[1743082417679,0.36157432,86094.0,86093.0,0.1175059]
[1743082418062,0.3608,86108.0,86107.0,0.116167]
[1743082418373,0.3608,86108.0,86107.0,0.117647]
[1743082418779,0.06533233,86108.0,86107.0,0.117647]
[1743082418966,0.3608,86122.0,86115.0,0.0580781]
[1743082419168,0.3608,86122.0,86115.0,0.1161558]
[1743082419367,0.0580754,86119.0,86116.0,0.1161546]
[1743082419569,0.1161541,86117.0,86116.0,0.00148]
[1743082419775,0.0580754,86119.0,86116.0,0.00148]
[1743082420077,0.1142,86121.0,86110.0,0.0001742]
[1743082420266,0.1142,86121.0,86111.0,8e-05]
[1743082420267,0.1161603,86112.0,86111.0,8e-05]
[1743082420467,0.3608,86113.0,86112.0,0.1161603]
[1743082420672,0.61924,86137.0,86120.0,0.1161495]
[1743082420673,0.3608,86132.0,86120.0,0.1161495]
[1743082420868,0.3608,86132.0,86121.0,0.1161482]
[1743082421064,0.3608,86132.0,86111.0,0.36088]
[1743082421065,0.0404445,86116.0,86115.0,0.0580781]
[1743082421262,0.04148451,86116.0,86115.0,0.5360744]
[1743082421473,0.4166,86137.0,86120.0,0.0580747]
[1743082421673,0.3608,86141.0,86140.0,0.1161225]
[1743082421977,0.13484793,86150.0,86149.0,0.1161104]
[1743082422162,0.13544794,86150.0,86149.0,0.1175104]
[1743082422669,0.13544794,86150.0,86149.0,0.0014]
[1743082422670,0.61235704,86150.0,86149.0,0.0014]
[1743082422862,0.1161198,86142.0,86141.0,0.0002542]
[1743082423070,0.116132,86133.0,86132.0,8e-05]
[1743082423265,0.00060001,86133.0,86127.0,0.1161391]
[1743082423567,0.3608,86140.0,86127.0,0.00092]
[1743082423769,0.1161374,86129.0,86128.0,0.1161]
[1743082424073,0.1161374,86129.0,86128.0,0.11702]
[1743082424262,0.1161374,86129.0,86128.0,0.00092]
[1743082424466,0.1161414,86126.0,86125.0,0.1161]
[1743082424666,0.1161428,86125.0,86124.0,0.00096]
[1743082424868,0.1161738,86102.0,86098.0,0.3608]
[1743082425078,0.1161738,86102.0,86101.0,0.0008]
[1743082425269,0.3608,86110.0,86101.0,0.00064]
[1743082425463,0.1161738,86102.0,86101.0,0.00064]
[1743082425666,0.00068,86102.0,86101.0,0.1168035]
[1743082425869,0.4188638,86128.0,86110.0,0.0580751]
[1743082426067,0.2199,86124.0,86122.0,0.3608]
[1743082426262,0.3367525,86124.0,86123.0,0.1154]
[1743082426474,0.22062,86124.0,86105.0,0.1161575]
[1743082426677,0.1161554,86107.0,86106.0,0.1154]
[1743082426975,0.1161554,86107.0,86106.0,0.116796]
[1743082426976,0.00068,86107.0,86106.0,0.116796]
[1743082427174,0.0580738,86113.0,86106.0,0.0587177]
[1743082427364,0.11615,86111.0,86110.0,0.3608]
[1743082427679,0.11679,86111.0,86110.0,0.36144]
[1743082428179,0.11679,86111.0,86110.0,0.4775914]
[1743082428377,0.00064,86111.0,86110.0,0.4775914]
[1743082428565,0.13484793,86130.0,86116.0,0.0580713]
[1743082428566,0.1742118,86119.0,86116.0,0.0580713]
[1743082428765,0.00105421,86126.0,86125.0,0.1161312]
[1743082428964,0.00189421,86126.0,86125.0,0.4777712]
[1743082429175,0.116304,86126.0,86125.0,0.4777712]
[1743082429370,0.0010142,86126.0,86125.0,0.6947712]
[1743082429682,0.0001742,86126.0,86125.0,0.6947712]
[1743082430177,0.16916662,86137.0,86125.0,0.72864]
[1743082430364,0.22806452,86137.0,86136.0,0.3608]
[1743082430571,0.17000662,86137.0,86136.0,0.6764363]
[1743082430872,0.16916662,86137.0,86136.0,0.6764363]
[1743082431176,0.16916662,86137.0,86136.0,0.22264]
[1743082431177,0.24463221,86137.0,86136.0,0.22264]
[1743082431367,0.24547221,86137.0,86136.0,0.22264]
[1743082431569,0.116955,86137.0,86136.0,0.11404]
[1743082431766,0.116955,86137.0,86136.0,0.11704]
[1743082432271,0.116955,86137.0,86136.0,0.11804]
[1743082432780,0.116955,86137.0,86136.0,1e-07]
[1743082432969,0.477755,86137.0,86136.0,1e-07]
[1743082433570,0.894355,86137.0,86136.0,1e-07]
[1743082433971,0.1161406,86118.0,86117.0,0.1163157]
[1743082434167,0.00068,86118.0,86117.0,0.1169157]
[1743082434377,0.1161366,86121.0,86117.0,0.0007742]
[1743082434682,0.1161406,86118.0,86117.0,0.0007742]
[1743082435069,0.1168206,86118.0,86117.0,0.1169162]
[1743082435269,0.1161406,86118.0,86117.0,0.0021742]
[1743082436082,0.1161406,86118.0,86117.0,0.0011742]
[1743082436083,0.4769406,86118.0,86117.0,0.0011742]
[1743082436597,0.1161527,86109.0,86108.0,8e-05]
[1743082436881,0.3608,86118.0,86090.0,0.4769784]
[1743082436882,0.116177,86091.0,86090.0,0.4769784]
[1743082437083,0.116177,86091.0,86090.0,0.3608]
[1743082437576,0.1161797,86089.0,86088.0,0.10888696]
[1743082437780,0.1161797,86089.0,86088.0,0.10880696]
[1743082438083,0.1161797,86089.0,86088.0,0.00220696]
[1743082438375,0.6992797,86089.0,86088.0,0.00046464]
[1743082438981,0.3404797,86089.0,86088.0,0.00546464]
[1743082439481,0.3404797,86089.0,86088.0,0.36626464]
[1743082439683,0.002,86089.0,86088.0,0.48244574]
[1743082439875,0.0001742,86099.0,86097.0,0.1161676]
[1743082440075,0.1163404,86099.0,86098.0,0.3357676]
[1743082440271,0.3608,86118.0,86098.0,0.2202]
[1743082440486,0.1161642,86101.0,86099.0,0.0580827]
[1743082440684,0.058077,86108.0,86107.0,0.1161541]
[1743082440984,0.1169141,86108.0,86107.0,0.4777154]
[1743082441180,0.0580754,86111.0,86108.0,0.0580764]
[1743082441481,0.11615,86113.0,86112.0,0.1161473]
[1743082441681,0.11691,86113.0,86112.0,0.1169487]
[1743082441870,0.11691,86113.0,86112.0,0.0008]
[1743082442487,0.00076,86113.0,86112.0,0.1169487]
[1743082442676,0.0001742,86116.0,86115.0,0.1161446]
[1743082442879,0.0001742,86116.0,86115.0,0.4777046]
[1743082443184,0.27150279,86142.0,86135.0,0.1161177]
[1743082443386,0.23607612,86136.0,86135.0,0.19288]
[1743082443585,0.0580675,86123.0,86110.0,0.3608]
[1743082443887,0.116142,86117.0,86116.0,0.00016]
[1743082444073,0.116142,86117.0,86108.0,0.001]
[1743082444074,0.1161527,86109.0,86108.0,0.001]
[1743082444275,0.1167927,86109.0,86108.0,0.0001742]
[1743082444688,0.3608,86109.0,86108.0,0.0001742]
[1743082444886,0.1178,86116.0,86115.0,0.1161446]
[1743082445073,0.00068,86116.0,86115.0,0.1161446]
[1743082445271,0.00068,86116.0,86115.0,0.00072]
[1743082445480,0.00068,86116.0,86072.0,0.00046472]
[1743082445481,0.1161865,86084.0,86072.0,0.00046472]
[1743082445675,0.1162013,86073.0,86072.0,0.00046472]
[1743082445879,0.4776413,86073.0,86072.0,0.00046472]
[1743082446081,0.1162159,86063.0,86056.0,0.3608]
[1743082446281,0.00072,86063.0,86062.0,0.1162162]
[1743082446479,0.00072,86063.0,86062.0,0.00068]
[1743082446882,0.00064,86063.0,86062.0,0.1168962]
[1743082447080,0.1162148,86063.0,86062.0,0.00068]
[1743082447279,0.1168548,86063.0,86062.0,0.00068]
[1743082447480,0.1168548,86063.0,86062.0,0.1168962]
[1743082447681,0.1178548,86063.0,86062.0,0.00368]
[1743082447983,0.00164,86063.0,86062.0,0.1198962]
[1743082448190,0.002,86063.0,86062.0,0.1198962]
[1743082448391,0.1182148,86063.0,86062.0,0.00368]
[1743082448590,0.00272,86063.0,86062.0,0.00368]
[1743082448779,0.00272,86063.0,86062.0,0.1198962]
[1743082448982,0.002,86063.0,86062.0,0.00368]
[1743082449186,0.1182148,86063.0,86062.0,0.00368]
[1743082449478,0.00268,86063.0,86062.0,0.1198962]
[1743082449681,0.1188948,86063.0,86062.0,0.00368]
[1743082449888,0.1188548,86063.0,86062.0,0.00368]
[1743082450077,0.0607474,86063.0,86057.0,0.2500711]
[1743082450282,0.002,86063.0,86057.0,0.19256]
[1743082450481,0.1162216,86058.0,86057.0,0.0006]
[1743082450792,0.00088001,86058.0,86057.0,0.1168229]
[1743082451086,0.002,86063.0,86062.0,0.1162162]
[1743082451282,0.00284,86063.0,86062.0,0.0006]
[1743082451482,0.1190548,86063.0,86062.0,0.0006]
[1743082451679,0.4798548,86063.0,86062.0,0.0006]
[1743082451887,0.1180548,86063.0,86062.0,0.0006]
[1743082452187,0.00184,86063.0,86062.0,0.1168162]
[1743082453088,0.00084,86063.0,86062.0,0.1168162]
[1743082453489,0.00084,86063.0,86062.0,0.3081362]
[1743082453690,0.00184,86063.0,86062.0,0.3081362]
[1743082454195,0.00284,86063.0,86062.0,0.3081362]
[1743082454397,0.002,86063.0,86062.0,0.3081362]
[1743082455592,0.4166,86078.0,86070.0,0.1162054]
[1743082455783,0.4166,86084.0,86081.0,0.1161892]
[1743082455987,0.1161892,86082.0,86081.0,0.0006]
[1743082456181,0.1161926,86080.0,86074.0,0.0581]
[1743082456390,0.00084,86080.0,86079.0,0.1161924]
[1743082456584,0.3608,86091.0,86077.0,0.1161955]
[1743082456785,0.4166,86090.0,86081.0,0.1161897]
[1743082456985,0.0001742,86093.0,86089.0,0.4769797]
[1743082457194,0.3608,86130.0,86089.0,0.4769797]
[1743082457195,0.1117,86139.0,86091.0,0.3608]
[1743082457384,0.1117,86139.0,86120.0,0.30588702]
[1743082457580,0.1117,86139.0,86128.0,0.1161261]
[1743082457901,0.3608,86129.0,86114.0,0.92024]
[1743082458081,0.1094,86128.0,86115.0,0.0580723]
[1743082458281,0.1161385,86120.0,86117.0,0.1161414]
[1743082458488,0.1094,86119.0,86118.0,0.1161406]
[1743082458788,0.1094,86119.0,86118.0,0.2348406]
[1743082458989,0.2255393,86119.0,86118.0,0.2348406]
[1743082459187,0.2255393,86119.0,86118.0,0.1187]
[1743082459392,0.2836089,86119.0,86118.0,0.1161406]
[1743082459783,0.116146,86114.0,86113.0,0.0001742]
[1743082459997,0.0580703,86118.0,86117.0,0.116142]
[1743082460191,0.116146,86114.0,86113.0,0.0001742]
[1743082460395,0.476946,86114.0,86113.0,0.0001742]
[1743082460692,0.837746,86114.0,86113.0,0.0001742]
[1743082460996,0.476946,86114.0,86113.0,0.0001742]
[1743082462391,0.00084,86114.0,86113.0,0.1169215]
[1743082462591,0.002,86118.0,86117.0,0.116142]
[1743082462796,0.00284,86118.0,86117.0,0.306142]
[1743082462991,0.1161399,86119.0,86118.0,0.1161406]
[1743082463187,0.1161399,86119.0,86118.0,0.2240406]
[1743082463389,0.11701991,86119.0,86118.0,0.2246806]
[1743082463587,0.474663,86129.0,86126.0,0.1161298]
[1743082463791,0.1161271,86128.0,86127.0,0.1079]
[1743082463990,0.47752711,86128.0,86127.0,0.0006]
[1743082464204,0.118146,86114.0,86100.0,0.1886]
[1743082464390,0.118786,86114.0,86106.0,0.0580783]
[1743082464595,0.118786,86114.0,86109.0,0.0580762]
[1743082464796,0.00264,86114.0,86113.0,0.1169215]
[1743082464997,0.002,86114.0,86113.0,0.4138215]
[1743082465495,0.289465,86126.0,86117.0,0.1161396]
[1743082465688,0.116146,86114.0,86113.0,0.0001742]
[1743082465889,0.11674601,86114.0,86113.0,0.0007742]
[1743082466100,0.00060001,86114.0,86113.0,0.1169215]
[1743082466306,0.00060001,86114.0,86113.0,0.1169615]
[1743082466493,0.1161379,86121.0,86120.0,0.1161361]
[1743082466702,0.11673791,86121.0,86120.0,0.2278379]
[1743082466903,0.00060001,86121.0,86120.0,0.2278379]
[1743082467210,0.002,86126.0,86125.0,0.1161312]
[1743082467514,0.00068,86126.0,86125.0,0.4775312]
[1743082468014,0.00168,86126.0,86125.0,0.4775312]
[1743082468713,0.00168,86126.0,86125.0,0.1167407]
[1743082469311,0.00568,86126.0,86125.0,0.1167407]
[1743082469609,0.00768,86126.0,86125.0,0.1167407]
[1743082469810,0.4166,86147.0,86146.0,0.1161145]
[1743082470008,0.10259531,86149.0,86148.0,0.1161119]
[1743082470213,0.1192,86165.0,86148.0,0.0008]
[1743082470406,0.1161105,86149.0,86148.0,0.0008]
[1743082470607,0.1161105,86149.0,86138.0,0.00887826]
[1743082470608,0.058056,86148.0,86138.0,0.00887826]
[1743082470803,0.23734001,86148.0,86139.0,0.1175]
[1743082471109,0.23734001,86148.0,86140.0,0.1161101]
[1743082471311,0.00124001,86148.0,86147.0,0.1161015]
[1743082471507,0.005,86149.0,86148.0,0.1161002]
[1743082471701,0.005,86149.0,86148.0,0.1173402]
[1743082471907,0.0001742,86152.0,86151.0,0.1161009]
[1743082472111,0.2252,86165.0,86164.0,0.1160834]
[1743082472411,0.342562,86165.0,86164.0,0.00128]
[1743082472610,0.22648,86165.0,86164.0,0.1160818]
[1743082472812,0.3425605,86165.0,86164.0,0.00124]
[1743082473415,0.00128,86165.0,86164.0,0.1173218]
[1743082473715,0.0580366,86170.0,86164.0,0.1173218]
[1743082473716,0.1108,86170.0,86169.0,0.116074]
[1743082473909,0.11204001,86170.0,86169.0,0.117314]
[1743082474106,0.00124001,86170.0,86169.0,0.117314]
[1743082474303,0.00011359,86173.0,86172.0,0.11607]
[1743082474504,0.00011359,86173.0,86172.0,0.11731]
[1743082474908,0.00011359,86173.0,86172.0,0.23621]
[1743082475307,0.4794,86193.0,86172.0,0.63094]
[1743082475512,0.4794,86193.0,86180.0,0.3608]
[1743082475513,0.48072,86193.0,86180.0,0.3608]
[1743082475720,0.116066,86182.0,86181.0,0.1159]
[1743082475907,0.477546,86182.0,86181.0,0.11714]
[1743082476110,0.1160732,86176.0,86175.0,0.0580371]
[1743082476310,0.00124001,86176.0,86175.0,0.1751771]
[1743082476506,0.1223,86178.0,86177.0,0.1160701]
[1743082476712,0.12358,86178.0,86177.0,0.1173501]
[1743082477007,0.2396442,86178.0,86177.0,0.00128]
[1743082477511,0.2396442,86178.0,86177.0,0.1173455]
[1743082477705,0.12358,86178.0,86177.0,0.1173455]
[1743082478110,0.00128,86178.0,86177.0,0.1173455]
[1743082478414,0.002,86178.0,86177.0,0.00128]
[1743082478617,0.1180714,86178.0,86177.0,0.00128]
[1743082479109,0.116072,86177.0,86176.0,0.1160737]
[1743082479315,0.1160765,86173.0,86172.0,0.1160763]
[1743082479509,0.116079,86170.0,86169.0,0.0001741]
[1743082480309,0.476879,86170.0,86169.0,0.0001741]
[1743082480508,0.1160877,86164.0,86150.0,8e-05]
[1743082480718,0.1161062,86151.0,86149.0,0.1117]
[1743082480919,0.5915066,86150.0,86149.0,0.1117]
[1743082481127,0.1161106,86147.0,86146.0,8e-05]
[1743082481311,0.1203,86149.0,86148.0,0.1161099]
[1743082481613,0.2349,86149.0,86148.0,0.1161099]
[1743082481819,0.3510085,86149.0,86148.0,0.1161099]
[1743082482021,0.3510085,86149.0,86147.0,0.1117]
[1743082482022,0.1161001,86148.0,86147.0,0.2278015]
[1743082482214,0.1161001,86148.0,86147.0,0.1117]
[1743082482408,0.3510001,86148.0,86147.0,0.1117]
[1743082482607,0.1161096,86141.0,86134.0,0.00016]
[1743082482811,0.4769096,86141.0,86140.0,0.0001741]
[1743082483520,0.5927096,86141.0,86140.0,0.0001741]
[1743082483721,0.4766,86141.0,86140.0,0.0001741]
[1743082484016,0.1158,86141.0,86140.0,0.116285]
[1743082484318,0.474654,86143.0,86140.0,0.0014141]
[1743082484519,0.3505082,86142.0,86141.0,0.1151]
[1743082484725,0.00124001,86142.0,86141.0,0.3453896]
[1743082485115,0.11734821,86142.0,86141.0,0.22928]
[1743082485518,0.11734821,86142.0,86141.0,0.3453896]
[1743082485719,0.00124001,86142.0,86141.0,0.3453896]
[1743082486108,0.00124001,86142.0,86141.0,0.3463896]
[1743082486314,0.00124001,86142.0,86141.0,0.3483896]
[1743082486909,0.00124001,86142.0,86141.0,0.3493896]
[1743082487114,0.11734821,86142.0,86141.0,0.00528]
[1743082487311,0.35364821,86142.0,86141.0,0.00528]
[1743082487517,0.35364821,86142.0,86141.0,0.004]
[1743082487720,0.46934821,86142.0,86141.0,0.004]
[1743082488219,0.46934821,86142.0,86141.0,0.1201096]
[1743082488423,0.35364821,86142.0,86141.0,0.004]
[1743082488824,0.35364821,86142.0,86141.0,0.3571096]
[1743082489024,0.35364821,86142.0,86141.0,0.3583496]
[1743082489326,0.00124001,86142.0,86141.0,0.3583496]
[1743082489822,0.00124001,86142.0,86141.0,0.3573496]
[1743082490220,1e-08,86142.0,86141.0,0.3573496]
[1743082490418,0.3608,86143.0,86142.0,0.1161082]
[1743082490619,0.3608,86143.0,86142.0,0.1178282]
[1743082490828,0.3608,86143.0,86142.0,0.3529282]
[1743082492231,0.3608,86143.0,86142.0,0.3559282]
[1743082492722,0.3608,86143.0,86142.0,0.3579282]
[1743082493130,0.7216,86143.0,86142.0,0.3579282]
[1743082493322,0.1161204,86133.0,86128.0,8e-05]
[1743082493522,0.1161406,86118.0,86117.0,8e-05]
[1743082493732,0.3608,86118.0,86117.0,0.1161419]
[1743082494035,0.1161446,86115.0,86114.0,0.0580727]
[1743082494232,0.179571,86117.0,86112.0,8e-05]
[1743082494419,0.1161473,86113.0,86112.0,8e-05]
[1743082494823,0.2281473,86113.0,86112.0,0.1161487]
[1743082495025,0.1161514,86110.0,86109.0,0.1162327]
[1743082495233,0.4769514,86110.0,86109.0,8e-05]
[1743082495830,0.1161554,86107.0,86106.0,0.0001741]
[1743082496633,0.1161851,86085.0,86084.0,0.19887533]
[1743082496820,0.3608,86085.0,86084.0,0.37315443]
[1743082497335,0.2452,86095.0,86084.0,0.19887533]
[1743082497628,0.2452,86095.0,86094.0,0.116173]
[1743082497833,0.2452,86095.0,86091.0,0.1161757]
[1743082497834,0.1161757,86092.0,86091.0,0.1161757]
[1743082498130,0.1161757,86092.0,86091.0,0.2323519]
[1743082498534,0.1161757,86092.0,86091.0,0.1161757]
[1743082498721,0.3569757,86092.0,86091.0,0.1161757]
[1743082499123,0.00112001,86092.0,86091.0,0.8388957]
[1743082499326,0.0674,86141.0,86091.0,1.0506]
[1743082499522,0.18509502,86150.0,86136.0,0.3608]
[1743082499825,0.116115,86137.0,86136.0,0.3608]
[1743082500232,0.4166,86141.0,86140.0,0.1161109]
[1743082500420,0.4166,86141.0,86140.0,0.4769109]
[1743082500622,0.23547611,86142.0,86141.0,0.1161096]
[1743082503231,0.23647611,86142.0,86141.0,0.1161096]
[1743082503636,0.001,86142.0,86141.0,0.1161096]
[1743082504835,0.4166,86155.0,86154.0,0.1160921]
[1743082505032,0.16947303,86187.0,86154.0,0.1160921]
[1743082505033,0.1259,86170.0,86154.0,0.7216]
[1743082505236,0.5515,86169.0,86165.0,0.3608]
[1743082505438,0.1160759,86166.0,86165.0,0.36232]
[1743082505630,0.1175159,86166.0,86165.0,0.36232]
[1743082506629,0.1175159,86166.0,86165.0,0.00152]
[1743082506824,0.1160867,86158.0,86157.0,0.00017409]
[1743082507041,0.1175267,86158.0,86157.0,0.00161409]
[1743082507337,0.00144,86158.0,86157.0,0.11770209]
[1743082507540,0.26384,86158.0,86157.0,0.11770209]
[1743082507832,0.26300001,86158.0,86157.0,0.11770209]
[1743082508034,0.37908671,86158.0,86157.0,0.13031409]
[1743082508230,0.37908671,86158.0,86157.0,0.11770209]
[1743082508431,0.37908671,86158.0,86157.0,0.00161409]
[1743082508639,0.38408671,86158.0,86157.0,0.00161409]
[1743082508836,0.26800001,86158.0,86157.0,0.00161409]
[1743082509139,0.38408671,86158.0,86157.0,0.11770209]
[1743082509329,0.38208671,86158.0,86157.0,0.00161409]
[1743082509530,0.38708671,86158.0,86157.0,0.00161409]
[1743082509732,0.80368671,86158.0,86157.0,0.00161409]
[1743082510532,0.0580446,86157.0,86147.0,0.3608]
[1743082510726,0.4166,86156.0,86135.0,0.3608]
[1743082510931,0.1161163,86136.0,86135.0,0.36156]
[1743082511233,0.11671631,86136.0,86135.0,0.36156]
[1743082511436,0.11671631,86136.0,86135.0,0.4776777]
[1743082511631,0.00060001,86136.0,86135.0,0.4776777]
[1743082511833,0.00060001,86136.0,86135.0,0.00076]
[1743082512036,0.1161271,86128.0,86127.0,0.00017409]
[1743082512239,0.11672711,86128.0,86127.0,0.00097409]
[1743082512435,0.11672711,86128.0,86127.0,0.11630259]
[1743082512744,0.00060001,86128.0,86127.0,0.11702259]
[1743082513041,0.38072711,86128.0,86127.0,0.11702259]
[1743082513241,0.38072711,86128.0,86127.0,0.11774259]
[1743082513431,0.38072711,86128.0,86127.0,0.12002259]
[1743082513626,0.38072711,86128.0,86127.0,0.25242259]
[1743082514344,0.38072711,86128.0,86127.0,0.13629409]
[1743082514537,0.38072711,86128.0,86127.0,0.00389409]
[1743082514744,0.38072711,86128.0,86127.0,0.00517409]
[1743082515134,0.38072711,86128.0,86127.0,0.00593409]
[1743082516034,0.00060001,86128.0,86127.0,0.48286259]
[1743082516237,0.1248,86143.0,86142.0,0.1161082]
[1743082516433,0.0580504,86148.0,86143.0,0.1161069]
[1743082516633,0.1171596,86144.0,86143.0,0.25998]
[1743082516943,0.1172396,86144.0,86143.0,0.25998]
[1743082517339,0.1172396,86144.0,86143.0,0.00088]
[1743082517540,0.1182396,86144.0,86143.0,0.00088]
[1743082517732,0.4790396,86144.0,86143.0,0.00088]
[1743082517932,0.1161244,86130.0,86129.0,0.1358]
[1743082518329,0.1161244,86130.0,86129.0,0.2519258]
[1743082518544,0.1161244,86130.0,86129.0,0.1358]
[1743082518935,0.1161244,86130.0,86129.0,0.2519258]
[1743082519137,0.1161244,86130.0,86129.0,0.1378]
[1743082519341,0.1161244,86130.0,86129.0,0.002]
[1743082520041,0.1161244,86130.0,86129.0,0.004]
[1743082520238,0.1161244,86130.0,86129.0,0.1201258]
[1743082520442,0.1741859,86132.0,86131.0,0.1161231]
[1743082520742,0.1741733,86138.0,86137.0,0.058056]
[1743082520939,0.1741733,86138.0,86131.0,0.4188609]
[1743082520940,0.0580595,86135.0,86132.0,0.1269]
[1743082521129,0.1161244,86130.0,86129.0,0.004]
[1743082521735,0.00017409,86144.0,86129.0,0.002]
[1743082522046,0.058054,86143.0,86142.0,0.3608]
[1743082522235,0.00017409,86144.0,86143.0,0.1161069]
[1743082522641,0.00017409,86144.0,86143.0,0.2430069]
[1743082522856,0.00017409,86144.0,86143.0,0.2438869]
[1743082523049,0.11627959,86144.0,86143.0,0.12778]
[1743082523339,0.1171596,86144.0,86143.0,0.12778]
[1743082523842,0.1161244,86130.0,86124.0,0.1161323]
[1743082524048,0.11700441,86130.0,86129.0,0.1190858]
[1743082524243,0.11700441,86130.0,86129.0,0.00096]
[1743082524741,0.11700441,86130.0,86129.0,1e-07]
[1743082524940,0.11700441,86130.0,86116.0,0.00016]
[1743082524941,0.1161419,86117.0,86116.0,1e-07]
[1743082525134,1.25494191,86117.0,86116.0,1e-07]
[1743082525340,0.1161703,86096.0,86095.0,8e-05]
[1743082525535,0.1161757,86092.0,86091.0,0.19673396]
[1743082525735,0.11677571,86092.0,86091.0,0.19733396]
[1743082525941,0.11677571,86092.0,86091.0,0.19673396]
[1743082526542,0.1161959,86077.0,86073.0,8e-05]
[1743082526737,0.4776759,86077.0,86076.0,0.41596394]
[1743082527142,0.4776759,86077.0,86076.0,0.41604394]
[1743082527350,0.4776759,86077.0,86076.0,0.00076]
[1743082527351,0.6181759,86077.0,86076.0,0.00076]
[1743082527850,0.116204,86071.0,86070.0,0.37944299]
[1743082528052,0.117004,86071.0,86070.0,0.38012299]
[1743082529249,0.117004,86071.0,86070.0,0.38412299]
[1743082529446,0.117004,86071.0,86070.0,0.38812299]
[1743082529752,0.0008,86071.0,86070.0,0.65182839]
[1743082529951,0.116204,86071.0,86070.0,0.65182839]
[1743082530147,0.0581012,86073.0,86072.0,0.1162027]
[1743082530361,0.0581012,86073.0,86072.0,0.1168027]
[1743082531052,0.3608,86082.0,86078.0,0.1161946]
[1743082531252,0.0010142,86079.0,86078.0,0.1168746]
[1743082531454,0.1172074,86079.0,86078.0,0.00068]
[1743082531646,0.1161946,86078.0,86077.0,0.1475]
[1743082531846,0.1161946,86078.0,86077.0,0.00068]
[1743082531847,0.4031346,86078.0,86077.0,0.00068]
[1743082532054,0.4031346,86078.0,86077.0,8e-05]
[1743082532244,0.4031346,86078.0,86077.0,0.00064]
[1743082532448,0.1162027,86072.0,86071.0,0.2552038]
[1743082532754,0.1169627,86072.0,86071.0,0.2558438]
[1743082532948,0.1169627,86072.0,86071.0,0.13964]
[1743082533144,0.1169627,86072.0,86071.0,0.255844]
[1743082533855,0.1179627,86072.0,86071.0,0.13964]
[1743082534354,0.00176,86072.0,86071.0,0.255844]
[1743082534552,0.001,86072.0,86071.0,0.255844]
[1743082534949,0.0001742,86079.0,86078.0,0.1161953]
[1743082535253,0.0001742,86079.0,86078.0,0.1169553]
[1743082535254,0.0009342,86079.0,86078.0,0.1169553]
[1743082535451,0.1171281,86079.0,86078.0,0.1169553]
[1743082535652,0.1171281,86079.0,86078.0,0.27676]
[1743082536059,0.1171281,86079.0,86078.0,0.3929594]
[1743082536357,0.1163681,86079.0,86078.0,0.27876]
[1743082536557,0.1163681,86079.0,86078.0,0.3949604]
[1743082536744,0.1163681,86079.0,86078.0,0.3929604]
[1743082536950,0.0021742,86079.0,86078.0,0.3929604]
[1743082537462,0.5667742,86079.0,86074.0,0.1585378]
[1743082537760,0.5667742,86079.0,85994.0,0.0581566]
[1743082537761,0.3608,86024.0,85994.0,0.0581566]
[1743082537960,0.00116,86024.0,86001.0,0.2774]
[1743082538163,0.7216,86002.0,86001.0,0.3943103]
[1743082538362,0.72276,86002.0,86001.0,0.3943103]
[1743082539359,0.72276,86002.0,86001.0,0.5669903]
[1743082539661,0.72276,86002.0,86001.0,0.5729903]
[1743082540163,0.72276,86002.0,86001.0,0.4003103]
[1743082540352,0.72276,86002.0,86001.0,0.284]
[1743082540548,0.72276,86002.0,86001.0,0.45616]
[1743082540756,0.72276,86002.0,86001.0,0.5774665]
[1743082540757,0.72376,86002.0,86001.0,0.5774665]
[1743082541152,0.8400645,86002.0,86001.0,0.46108]
[1743082541656,0.72376,86002.0,86001.0,0.4053033]
[1743082541855,0.8400633,86002.0,86001.0,0.289]
[1743082542059,0.72376,86002.0,86001.0,0.289]
[1743082542361,0.24202558,85993.0,85990.0,0.37944299]
[1743082542559,0.4771134,85991.0,85990.0,0.38088299]
[1743082542765,0.36216,85991.0,85990.0,0.38088299]
[1743082542950,0.4784757,85991.0,85990.0,0.38088299]